bitfinex/quotes_ETHUSD_20210401
["timestamp","ask_amount","ask_price","bid_price","bid_amount"]
[1617280268773,0.063,1922.9,1922.5,0.688]
[1617280268973,1.263,1922.9,1922.6,0.4]
[1617280269174,1.2,1922.9,1922.6,0.4]
[1617280269577,1.2,1922.9,1922.5,0.308]
[1617280269774,1.2,1922.9,1922.4,0.56720372]
[1617280269990,1.2,1922.9,1922.5,0.308]
[1617280270390,1.2,1922.9,1922.5,0.4942955]
[1617280270691,0.41971542,1923.0,1922.5,0.4942955]
[1617280270991,0.41971542,1923.0,1922.6,0.41]
[1617280271191,0.41971542,1923.0,1922.6,8.21285]
[1617280271392,0.27971542,1923.0,1922.8,0.38]
[1617280272392,0.27971542,1923.0,1922.7,0.28]
[1617280272618,0.27971542,1923.0,1922.7,0.68]
[1617280273020,0.27971542,1923.0,1922.7,0.28]
[1617280274121,0.27971542,1923.0,1922.5,0.1862955]
[1617280274322,0.27971542,1923.0,1922.5,0.4802955]
[1617280274923,0.27971542,1923.0,1922.5,0.1862955]
[1617280275124,8.08317542,1923.0,1922.5,1.21162176]
[1617280275346,14.29157542,1923.0,1922.5,0.1862955]
[1617280275747,15.04687542,1923.0,1922.5,0.1862955]
[1617280276156,7.24341542,1923.0,1922.5,7.9893855]
[1617280276553,7.24341542,1923.0,1922.5,8.3113855]
[1617280277058,7.24341542,1923.0,1922.6,0.4]
[1617280277873,7.24341542,1923.0,1922.5,0.5082955]
[1617280278069,0.27971542,1923.0,1922.5,0.8982955]
[1617280278268,0.27971542,1923.0,1922.6,7.80278]
[1617280278571,0.27971542,1923.0,1922.7,0.39]
[1617280278870,0.27971542,1923.0,1922.7,0.67]
[1617280279472,0.27971542,1923.0,1922.6,7.80278]
[1617280279774,0.27971542,1923.0,1922.6,10.54278]
[1617280280270,0.27971542,1923.0,1922.6,10.92278]
[1617280280719,0.27971542,1923.0,1922.8,0.39]
[1617280281320,0.27971542,1923.0,1922.5,0.5862955]
[1617280281520,0.66971542,1923.0,1922.5,0.8662955]
[1617280281719,0.27971542,1923.0,1922.5,0.8662955]
[1617280282521,0.27971542,1923.0,1922.7,7.80243]
[1617280283718,0.27971542,1923.0,1922.7,10.62243]
[1617280285022,0.27971542,1923.0,1922.8,0.39]
[1617280285219,0.27971542,1923.0,1922.8,8.19206]
[1617280285421,0.27971542,1923.0,1922.8,7.80206]
[1617280285746,0.27971542,1923.0,1922.7,2.82]
[1617280286144,0.41,1922.9,1922.7,10.62258]
[1617280286350,0.41,1922.9,1922.7,7.80258]
[1617280286744,0.27971542,1923.0,1922.7,7.80258]
[1617280286945,0.65971542,1923.0,1922.7,7.80258]
[1617280287146,0.27971542,1923.0,1922.7,7.80258]
[1617280288771,0.27971542,1923.0,1922.7,7.61258]
[1617280290774,0.27971542,1923.0,1922.7,10.31258]
[1617280291398,0.27971542,1923.0,1922.7,10.71258]
[1617280291698,0.11171542,1923.0,1922.7,10.70258]
[1617280293001,0.11171542,1923.0,1922.7,10.31258]
[1617280293501,0.28610827,1923.0,1922.7,10.31258]
[1617280293722,0.28610827,1923.0,1922.7,7.61258]
[1617280294531,1.29470827,1923.0,1922.7,7.61258]
[1617280294724,1.99420827,1923.0,1922.7,7.61258]
[1617280297376,1.99420827,1923.0,1922.6,10.8127]
[1617280297981,1.99420827,1923.0,1922.6,0.41]
[1617280298383,7.80376,1922.9,1922.6,0.41]
[1617280298578,7.80376,1922.9,1922.5,0.4662955]
[1617280300985,3.90213,1922.9,1922.5,0.4662955]
[1617280302304,0.39,1922.8,1922.5,0.4662955]
[1617280302701,8.19426,1922.8,1922.5,0.4662955]
[1617280304002,7.80426,1922.8,1922.5,0.4662955]
[1617280304425,2.49999848,1922.7,1922.5,0.1862955]
[1617280304725,4.58135948,1922.7,1922.5,0.1862955]
[1617280304925,9.486461,1922.7,1922.5,0.1862955]
[1617280305326,9.486461,1922.7,1922.4,0.16720372]
[1617280305525,26.65,1922.5,1922.4,0.16720372]
[1617280306165,34.65,1922.5,1922.4,0.16720372]
[1617280306324,37.65,1922.5,1922.4,0.16720372]
[1617280306527,13.89,1922.2,1922.1,2.0]
[1617280306754,21.6206,1922.2,1922.1,2.0]
[1617280307655,7.7306,1922.2,1922.1,2.0]
[1617280308257,2.0821655,1922.3,1922.1,2.0]
[1617280309698,4.18216398,1922.3,1922.1,2.0]
[1617280309898,0.39,1922.2,1922.1,2.0]
[1617280310301,2.0821655,1922.3,1922.1,2.0]
[1617280310500,2.4721655,1922.3,1922.1,2.0]
[1617280310701,2.0821655,1922.3,1922.1,2.0]
[1617280311702,4.18216398,1922.3,1922.1,2.0]
[1617280312105,24.16,1922.2,1922.1,2.0]
[1617280312306,26.5968,1922.2,1922.1,2.0]
[1617280312508,27.5956,1922.2,1922.1,2.0]
[1617280312908,16.4456,1922.2,1922.1,2.0]
[1617280313712,22.6567208,1922.2,1922.1,2.0]
[1617280314011,16.6067208,1922.2,1922.1,2.0]
[1617280315024,10.0255208,1922.2,1922.1,2.0]
[1617280315424,0.1611208,1922.2,1922.1,2.0]
[1617280315624,8.1611208,1922.2,1922.1,2.0]
[1617280316425,16.5011208,1922.2,1922.1,2.0]
[1617280317252,16.1111208,1922.2,1922.1,2.0]
[1617280317854,8.1111208,1922.2,1922.1,2.0]
[1617280318854,17.89011928,1922.2,1922.1,2.0]
[1617280319255,25.89011928,1922.2,1922.1,2.0]
[1617280319555,23.7901208,1922.2,1922.1,2.0]
[1617280320878,15.8401208,1922.2,1922.1,2.0]
[1617280322284,15.93078024,1922.2,1922.1,2.0]
[1617280322701,21.93078024,1922.2,1922.1,2.0]
[1617280323905,12.0,1922.1,1921.6,2.39]
[1617280324204,9.8897524,1921.9,1921.6,2.38]
[1617280324403,18.2997524,1921.9,1921.6,2.0]
[1617280324803,2.10947478,1921.8,1921.6,2.0]
[1617280325007,29.2269,1921.7,1921.2,15.0149]
[1617280325252,37.3669,1921.7,1921.2,15.0149]
[1617280326149,3.90506,1921.6,1921.2,15.0149]
[1617280326351,2.0826976,1921.5,1921.2,15.0149]
[1617280326653,10.0826976,1921.5,1921.1,2.28]
[1617280327050,13.9876376,1921.5,1921.1,2.28]
[1617280327651,13.9876376,1921.5,1921.2,0.4]
[1617280327855,14.13708102,1921.5,1921.2,0.4]
[1617280329051,6.13708102,1921.5,1921.2,8.20806]
[1617280329550,6.13708102,1921.5,1921.1,7.21577847]
[1617280329551,14.13708102,1921.5,1921.1,7.21577847]
[1617280329751,14.13708102,1921.5,1921.1,2.48577847]
[1617280329952,6.13708102,1921.5,1921.1,2.48577847]
[1617280330256,0.14944342,1921.5,1921.4,0.39]
[1617280331887,0.14944342,1921.5,1921.4,1.05453806]
[1617280332093,0.14944342,1921.5,1921.3,8.48743]
[1617280332284,0.14944342,1921.5,1921.3,0.68]
[1617280333106,0.31052124,1921.5,1921.3,0.68]
[1617280333406,0.31052124,1921.5,1921.3,0.4]
[1617280335929,8.31052124,1921.5,1921.3,0.4]
[1617280336131,0.31052124,1921.5,1921.3,0.4]
[1617280336332,8.31052124,1921.5,1921.3,0.4]
[1617280336835,8.31052124,1921.5,1921.2,0.28]
[1617280337030,12.21507124,1921.5,1921.2,0.67]
[1617280338353,2.0824227,1921.4,1921.2,0.67]
[1617280338854,2.0824227,1921.4,1921.2,8.47826]
[1617280339055,2.0824227,1921.4,1921.3,5.01]
[1617280339257,12.21507124,1921.5,1921.3,5.42]
[1617280339557,0.31052124,1921.5,1921.4,5.39]
[1617280341506,0.31052124,1921.5,1921.4,0.38]
[1617280343006,0.31052124,1921.5,1921.3,6.88]
[1617280343205,0.31052124,1921.5,1921.2,39.20526]
[1617280343406,2.0822714,1921.4,1921.2,39.20526]
[1617280343607,2.0822714,1921.4,1921.2,25.10746]
[1617280343811,2.0822714,1921.4,1921.2,20.09746]
[1617280344008,2.0822714,1921.4,1921.2,12.0092]
[1617280344208,2.0822714,1921.4,1921.2,11.6092]
[1617280344409,2.0822714,1921.4,1921.1,10.01452847]
[1617280345211,2.0822714,1921.4,1921.1,2.20577847]
[1617280345711,2.0822714,1921.4,1921.3,0.38]
[1617280345912,0.31052124,1921.5,1921.3,13.4379]
[1617280346130,0.31052124,1921.5,1921.4,0.39]
[1617280346531,0.31052124,1921.5,1921.4,5.4]
[1617280346735,0.31052124,1921.5,1921.4,13.6]
[1617280347034,0.31052124,1921.5,1921.4,10.43]
[1617280347234,0.31052124,1921.5,1921.4,4.22]
[1617280347437,0.31052124,1921.5,1921.3,8.08515]
[1617280348036,4.21466124,1921.5,1921.3,0.28]
[1617280348234,4.21466124,1921.5,1921.1,2.20577847]
[1617280348634,5.20622,1921.4,1921.1,2.20577847]
[1617280348858,4.20622,1921.4,1921.1,2.20577847]
[1617280351382,12.01581,1921.4,1921.1,2.20577847]
[1617280351783,11.96581,1921.4,1921.1,2.20577847]
[1617280352384,4.15622,1921.4,1921.1,2.20577847]
[1617280353186,7.80999,1921.3,1921.1,2.20577847]
[1617280353685,7.80999,1921.3,1920.6,28.7033]
[1617280353686,0.4,1921.1,1920.6,28.7033]
[1617280353887,11.96769574,1921.2,1920.6,16.6933]
[1617280354544,0.39,1920.8,1920.6,11.4848405]
[1617280354741,12.56212972,1920.8,1920.6,11.4848405]
[1617280354946,20.56212972,1920.8,1920.1,9.81209]
[1617280355144,2.0833839,1920.5,1920.2,0.90150848]
[1617280355643,2.8828839,1920.5,1920.2,0.51150848]
[1617280356244,6.7892339,1920.5,1920.2,0.51150848]
[1617280356445,6.7892339,1920.5,1920.2,0.10550848]
[1617280356446,3.90647,1920.4,1920.2,0.10550848]
[1617280356650,10.35327971,1920.4,1920.2,0.10550848]
[1617280358453,11.50027971,1920.4,1920.2,0.10550848]
[1617280358848,10.50027971,1920.4,1920.2,0.10550848]
[1617280361985,6.44680971,1920.4,1920.2,5.11550848]
[1617280362186,6.44680971,1920.4,1920.2,0.10550848]
[1617280363092,8.59315587,1920.4,1920.2,0.10550848]
[1617280363486,6.44680971,1920.4,1920.2,0.10550848]
[1617280363887,6.17480971,1920.4,1920.2,0.10550848]
[1617280364087,6.7892339,1920.5,1920.2,0.10550848]
[1617280364287,8.0,1920.4,1920.2,0.50550848]
[1617280365411,5.9897339,1920.5,1920.2,0.10550848]
[1617280365812,16.3197339,1920.5,1920.1,1.69931748]
[1617280366226,24.3197339,1920.5,1920.1,1.41931748]
[1617280366522,9.718,1920.4,1920.1,1.41931748]
[1617280366921,2.14143356,1920.3,1920.1,1.5883422]
[1617280367137,9.718,1920.4,1920.1,1.5883422]
[1617280367339,9.718,1920.4,1920.2,0.38]
[1617280367537,9.718,1920.4,1920.1,1.5883422]
[1617280370058,10.22680419,1920.4,1920.1,1.5883422]
[1617280370458,2.14143356,1920.3,1920.1,1.5883422]
[1617280370662,10.22680419,1920.4,1920.1,1.5883422]
[1617280371563,9.84680419,1920.4,1920.1,1.5883422]
[1617280372387,13.75395419,1920.4,1920.1,1.5883422]
[1617280373090,2.14143356,1920.3,1920.1,1.5883422]
[1617280373288,4.03595419,1920.4,1920.1,1.5883422]
[1617280373487,6.17738775,1920.4,1920.1,1.5883422]
[1617280373896,4.18414317,1920.4,1920.1,1.5883422]
[1617280374689,4.18414317,1920.4,1920.1,1.9883422]
[1617280374889,2.41842673,1920.4,1920.1,1.9883422]
[1617280375110,0.27699317,1920.4,1920.1,1.9883422]
[1617280379238,0.27699317,1920.4,1920.2,7.8121]
[1617280380661,0.27699317,1920.4,1920.1,2.2683422]
[1617280383291,0.27699317,1920.4,1920.1,10.0809822]
[1617280383688,0.27699317,1920.4,1920.1,2.2683422]
[1617280384491,0.27699317,1920.4,1920.1,1.8683422]
[1617280384691,0.27699317,1920.4,1920.1,1.5883422]
[1617280385734,4.91215593,1920.4,1920.1,1.5883422]
[1617280385934,9.17411705,1920.3,1920.1,1.5883422]
[1617280386434,15.81423,1920.3,1920.1,1.5883422]
[1617280386634,8.0,1920.3,1920.1,1.5883422]
[1617280386934,7.81477,1920.2,1920.1,1.5883422]
[1617280387140,9.95620356,1920.2,1920.1,1.5883422]
[1617280387938,15.80620356,1920.2,1920.1,1.5883422]
[1617280388341,9.95620356,1920.2,1920.1,1.5883422]
[1617280388743,10.08500057,1920.2,1920.1,1.5883422]
[1617280388943,23.88500057,1920.2,1920.1,1.5883422]
[1617280389245,24.27500057,1920.2,1920.1,1.41931748]
[1617280389648,25.62838628,1920.2,1920.1,1.41931748]
[1617280389941,24.27500057,1920.2,1920.1,1.41931748]
[1617280391062,24.27500057,1920.2,1920.1,0.31931748]
[1617280392468,29.27500057,1920.2,1920.1,0.31931748]
[1617280392767,22.1,1919.8,1919.7,0.98819459]
[1617280393166,33.1,1919.8,1919.7,0.98819459]
[1617280393587,32.7,1919.8,1919.7,0.98819459]
[1617280394187,40.5177,1919.8,1919.7,0.98819459]
[1617280394587,40.9177,1919.8,1919.7,0.98819459]
[1617280394788,40.5177,1919.8,1919.7,0.98819459]
[1617280394987,37.5177,1919.8,1919.7,0.98819459]
[1617280395387,40.64647548,1919.8,1919.7,0.98819459]
[1617280395789,32.82877548,1919.8,1919.7,0.98819459]
[1617280396014,11.0,1919.8,1919.7,0.98819459]
[1617280396240,3.97185,1919.9,1919.7,0.98819459]
[1617280396241,11.97185,1919.9,1919.7,0.98819459]
[1617280396444,11.97185,1919.9,1919.7,1.36819459]
[1617280396644,14.97185,1919.9,1919.7,1.36819459]
[1617280396948,11.03422896,1919.8,1919.7,0.98819459]
[1617280397743,23.33422896,1919.8,1919.7,0.98819459]
[1617280397946,23.72422896,1919.8,1919.7,0.98819459]
[1617280398249,39.08873896,1919.8,1919.7,0.98819459]
[1617280398646,30.69223896,1919.8,1919.7,0.98819459]
[1617280399048,30.30223896,1919.8,1919.7,0.98819459]
[1617280399445,30.68223896,1919.8,1919.7,0.98819459]
[1617280399645,35.88953429,1919.8,1919.7,0.73819459]
[1617280399846,43.88953429,1919.8,1919.7,0.73819459]
[1617280400949,38.88953429,1919.8,1919.7,0.73819459]
[1617280401264,43.88953429,1919.8,1919.7,0.73819459]
[1617280401670,44.00679771,1919.8,1919.7,0.73819459]
[1617280402567,70.85098982,1919.8,1919.7,0.39460083]
[1617280402769,51.71,1919.7,1919.6,2.0]
[1617280402967,60.1,1919.7,1919.6,2.0]
[1617280403168,68.1,1919.7,1919.6,2.0]
[1617280403367,62.452,1919.7,1919.6,2.0]
[1617280403768,67.91967,1919.7,1919.6,2.0]
[1617280403996,0.09406894,1919.5,1919.1,2.0]
[1617280404300,2.4752069,1919.4,1919.1,2.0]
[1617280404595,10.4752069,1919.4,1919.1,2.0]
[1617280404895,8.02617254,1919.3,1919.1,2.0]
[1617280405098,0.20664254,1919.3,1919.1,2.0]
[1617280405797,0.20664254,1919.3,1919.1,2.38]
[1617280406395,0.20664254,1919.3,1919.2,0.4]
[1617280406617,0.20664254,1919.3,1919.2,8.1755]
[1617280408123,0.20664254,1919.3,1919.2,7.8255]
[1617280409346,0.20664254,1919.3,1919.2,7.5255]
[1617280409544,0.20664254,1919.3,1919.2,10.6155]
[1617280409951,0.20664254,1919.3,1919.2,10.2255]
[1617280410145,0.20664254,1919.3,1919.2,10.6155]
[1617280410345,0.20664254,1919.3,1919.2,15.6255]
[1617280411763,0.20664254,1919.3,1919.2,16.8255]
[1617280412464,0.20664254,1919.3,1919.2,15.6255]
[1617280414166,0.20664254,1919.3,1919.2,16.8255]
[1617280416310,0.20664254,1919.3,1919.2,15.6255]
[1617280418719,0.20664254,1919.3,1919.2,15.79470344]
[1617280418921,0.20664254,1919.3,1919.2,15.74470344]
[1617280420240,0.20664254,1919.3,1919.2,13.04470344]
[1617280420640,0.20664254,1919.3,1919.2,8.03470344]
[1617280422040,0.20664254,1919.3,1919.2,7.64470344]
[1617280422041,2.32872736,1919.3,1919.2,7.64470344]
[1617280422273,15.37872736,1919.3,1919.2,0.16920344]
[1617280422471,23.37872736,1919.3,1919.2,0.16920344]
[1617280422767,29.07567254,1919.3,1919.2,0.16920344]
[1617280423968,29.45567254,1919.3,1919.2,0.16920344]
[1617280424667,29.07567254,1919.3,1919.2,0.16920344]
[1617280424898,21.25664254,1919.3,1919.2,0.16920344]
[1617280426398,8.20664254,1919.3,1919.2,0.16920344]
[1617280426599,8.20664254,1919.3,1919.2,2.70128826]
[1617280426798,0.20664254,1919.3,1919.2,2.70128826]
[1617280426999,0.20664254,1919.3,1919.2,3.90128826]
[1617280427300,0.20664254,1919.3,1919.2,5.54128826]
[1617280427521,0.20664254,1919.3,1919.2,6.74128826]
[1617280429121,0.20664254,1919.3,1919.2,5.54128826]
[1617280429520,0.20664254,1919.3,1919.2,6.74128826]
[1617280431667,0.20664254,1919.3,1919.2,5.54128826]
[1617280433170,0.20664254,1919.3,1919.2,6.74128826]
[1617280433770,0.20664254,1919.3,1919.2,5.54128826]
[1617280434776,0.20664254,1919.3,1919.2,10.55128826]
[1617280435071,0.20664254,1919.3,1919.2,8.42920344]
[1617280435276,0.20664254,1919.3,1919.2,10.55128826]
[1617280436096,0.20664254,1919.3,1919.2,11.75128826]
[1617280436699,0.20664254,1919.3,1919.2,10.55128826]
[1617280437804,0.20664254,1919.3,1919.2,11.75128826]
[1617280440323,0.20664254,1919.3,1919.2,10.55128826]
[1617280441044,0.20664254,1919.3,1919.2,11.75128826]
[1617280442176,0.20664254,1919.3,1919.2,18.75128826]
[1617280442373,0.20664254,1919.3,1919.2,19.06628826]
[1617280442573,8.27e-06,1919.4,1919.3,5.01]
[1617280442773,8.27e-06,1919.4,1919.3,6.62]
[1617280442985,8.27e-06,1919.4,1919.3,18.92]
[1617280443384,8.27e-06,1919.4,1919.3,27.06056]
[1617280443676,4.30611,1920.8,1920.2,0.39]
[1617280443885,0.14,1920.6,1920.4,0.329]
[1617280444076,0.463,1920.8,1920.4,0.329]
[1617280444481,0.4,1920.8,1920.5,0.371]
[1617280444685,0.4,1920.8,1920.6,16.44806]
[1617280444980,6.19933424,1921.2,1920.6,16.44806]
[1617280444981,0.39,1921.1,1920.6,16.44806]
[1617280445178,0.063,1921.0,1920.6,16.44806]
[1617280445482,0.063,1921.0,1920.6,8.6374]
[1617280447620,0.063,1921.0,1920.8,0.16776439]
[1617280447820,7.87435,1921.1,1920.7,1.2815]
[1617280448024,15.4,1921.0,1920.7,1.2815]
[1617280448224,23.21229,1921.0,1920.7,1.2815]
[1617280449022,15.4,1921.0,1920.7,1.2815]
[1617280449626,15.51719528,1921.0,1920.7,1.2815]
[1617280450023,14.51719528,1921.0,1920.7,1.2815]
[1617280450526,14.51719528,1921.0,1920.5,0.38]
[1617280450527,22.32946528,1921.0,1920.5,0.38]
[1617280450724,22.32946528,1921.0,1920.5,0.66]
[1617280451024,2.1464616,1920.9,1920.3,15.2737]
[1617280451251,2.1464616,1920.9,1920.3,15.1737]
[1617280451447,2.24053054,1920.9,1920.3,0.28]
[1617280451651,7.81348,1920.7,1920.3,0.28]
[1617280451851,7.87648,1920.7,1920.3,0.28]
[1617280452053,7.87648,1920.7,1920.2,7.7024]
[1617280452252,7.87648,1920.7,1920.1,0.39]
[1617280452454,7.87648,1920.7,1920.1,0.28]
[1617280452850,7.87648,1920.7,1920.3,0.42]
[1617280453551,15.87648,1920.7,1920.3,0.42]
[1617280453797,15.87648,1920.7,1920.2,8.3736]
[1617280453997,15.87648,1920.7,1920.2,7.9936]
[1617280454499,17.9601381,1920.7,1920.2,7.9936]
[1617280454698,10.1466581,1920.7,1920.1,0.28]
[1617280454898,9.1466581,1920.7,1920.3,0.42]
[1617280455098,2.1466581,1920.7,1920.3,0.42]
[1617280455298,2.26388206,1920.7,1920.3,0.42]
[1617280455499,2.26388206,1920.7,1920.3,9.7639]
[1617280455703,6.17074206,1920.7,1920.3,9.7639]
[1617280456099,6.17074206,1920.7,1920.3,9.3839]
[1617280456700,13.98403206,1920.7,1920.3,9.3839]
[1617280456904,7.99403396,1920.7,1920.3,9.3839]
[1617280457100,0.16454402,1920.5,1920.3,9.3839]
[1617280457501,0.16454402,1920.5,1920.3,9.54129538]
[1617280458103,2.27181936,1920.5,1920.3,9.54129538]
[1617280458503,0.16454402,1920.5,1920.3,9.54129538]
[1617280459320,0.16454402,1920.5,1920.3,9.82129538]
[1617280459518,2.27181936,1920.5,1920.3,9.54129538]
[1617280459917,1.27181936,1920.5,1920.3,9.54129538]
[1617280460318,10.0838264,1920.6,1920.3,10.20129538]
[1617280460525,8.0,1920.6,1920.4,0.38]
[1617280460719,4.08708396,1920.7,1920.4,0.38]
[1617280461325,4.08708396,1920.7,1920.3,9.82129538]
[1617280461520,11.90056396,1920.7,1920.3,9.82129538]
[1617280462548,0.08227201,1920.5,1920.3,9.82129538]
[1617280464972,11.535,1920.8,1920.4,0.761]
[1617280465172,3.535,1920.8,1920.6,0.39]
[1617280465373,3.535,1921.2,1920.7,16.39]
[1617280465574,3.535,1921.2,1920.8,10.2555448]
[1617280465575,11.535,1921.2,1920.8,10.2555448]
[1617280465778,11.535,1921.2,1920.9,5.367]
[1617280465779,3.535,1921.2,1920.9,5.367]
[1617280466077,3.535,1921.2,1921.1,14.23]
[1617280466273,2.0,1921.4,1921.1,23.1059]
[1617280466773,2.0,1921.4,1921.2,0.413]
[1617280466996,2.0,1921.4,1921.2,7.5455848]
[1617280467596,2.0,1921.4,1921.3,17.79]
[1617280467997,2.05972661,1921.4,1921.3,17.79]
[1617280468195,2.05972661,1921.4,1921.3,21.69]
[1617280468599,2.00972661,1921.4,1921.3,4.29]
[1617280468795,2.00972661,1921.4,1921.3,0.39]
[1617280468996,2.00972661,1921.4,1921.3,8.04]
[1617280469196,2.00972661,1921.4,1921.3,15.84778]
[1617280469617,2.00972661,1921.4,1921.3,19.14778]
[1617280470015,1.00972661,1921.4,1921.3,19.14778]
[1617280470217,1.00972661,1921.4,1921.3,11.34]
[1617280470519,1.00972661,1921.4,1921.3,8.16454752]
[1617280471018,1.00972661,1921.4,1921.3,13.76454752]
[1617280472143,1.00972661,1921.4,1921.3,21.57224752]
[1617280472344,1.00972661,1921.4,1921.3,26.59224752]
[1617280472950,1.1268968,1921.4,1921.3,26.59224752]
[1617280473146,1.1268968,1921.4,1921.3,18.78454752]
[1617280473447,1.1268968,1921.4,1921.3,13.18454752]
[1617280474446,1.1268968,1921.4,1921.3,12.79454752]
[1617280474648,1.1268968,1921.4,1921.3,13.18454752]
[1617280475093,0.7348968,1921.4,1921.3,13.18454752]
[1617280475392,0.7348968,1921.4,1921.3,18.19454752]
[1617280475792,0.7348968,1921.4,1921.3,20.99188752]
[1617280475997,0.7348968,1921.4,1921.3,13.18454752]
[1617280476596,0.7348968,1921.4,1921.3,21.99474752]
[1617280477394,0.7348968,1921.4,1921.3,29.80248752]
[1617280477796,0.7348968,1921.4,1921.3,36.29248752]
[1617280477997,0.7348968,1921.4,1921.3,35.37501641]
[1617280478697,0.7348968,1921.4,1921.3,47.30801642]
[1617280478903,0.7348968,1921.4,1921.3,45.80202128]
[1617280479100,0.7348968,1921.4,1921.3,35.37501641]
[1617280480025,0.7348968,1921.4,1921.3,36.88101155]
[1617280481123,1.7348968,1921.9,1921.5,1.2]
[1617280481323,1.7348968,1921.9,1921.7,0.41]
[1617280481523,1.7348968,1921.9,1921.7,9.2563]
[1617280481726,1.7348968,1921.9,1921.8,15.36]
[1617280481923,1.7348968,1921.9,1921.8,5.01]
[1617280482423,1.7348968,1921.9,1921.8,8.31]
[1617280482844,1.7348968,1921.9,1921.8,13.71]
[1617280483544,1.7348968,1921.9,1921.8,14.11]
[1617280484647,1.7348968,1921.9,1921.8,15.61121732]
[1617280485047,1.7348968,1921.9,1921.8,14.11]
[1617280485474,1.37615407,1921.9,1921.8,14.24021291]
[1617280485674,1.37615407,1921.9,1921.8,5.78276195]
[1617280485875,1.37615407,1921.9,1921.8,5.38276195]
[1617280486075,0.37615407,1921.9,1921.8,2.08276195]
[1617280486381,0.37615407,1921.9,1921.8,0.13021291]
[1617280486784,12.82615407,1921.9,1921.8,0.13021291]
[1617280487280,20.82615407,1921.9,1921.8,0.13021291]
[1617280487481,8.37615407,1921.9,1921.8,0.13021291]
[1617280487781,0.37615407,1921.9,1921.8,0.13021291]
[1617280490722,0.37615407,1921.9,1921.8,7.88021291]
[1617280490923,1.75615407,1922.4,1921.8,7.88021291]
[1617280491124,0.063,1922.3,1921.9,5.62]
[1617280491325,0.063,1922.3,1921.9,0.42]
[1617280491625,0.063,1922.3,1921.6,5.01]
[1617280491829,0.063,1922.3,1921.8,0.28]
[1617280492024,0.063,1922.3,1921.9,0.42]
[1617280492630,0.15706894,1922.3,1920.9,1.2]
[1617280492926,0.063,1921.9,1921.2,22.3261]
[1617280493148,0.453,1921.9,1921.3,0.007]
[1617280493350,0.063,1921.9,1921.3,0.007]
[1617280493551,0.063,1921.9,1921.3,4.487]
[1617280493751,0.063,1921.9,1921.4,0.504]
[1617280495352,11.71172,1922.0,1921.5,5.206]
[1617280495553,11.77472,1922.0,1921.9,0.17011134]
[1617280495976,10.77472,1922.0,1921.9,0.17011134]
[1617280496876,2.90383,1922.0,1921.9,0.17011134]
[1617280498278,7.80688,1922.1,1921.9,0.17011134]
[1617280498501,7.80688,1922.1,1921.9,0.45011134]
[1617280499508,3.96629,1922.3,1921.9,0.45011134]
[1617280499707,1.47022301,1922.4,1921.9,0.52711134]
[1617280499904,1.47022301,1922.4,1922.1,0.343]
[1617280500202,1.37615407,1922.4,1922.1,7.0984]
[1617280500601,1.37615407,1922.4,1922.1,6.7554]
[1617280501023,0.37615407,1922.4,1922.1,6.7554]
[1617280501524,10.26501979,1922.4,1922.1,6.7554]
[1617280501724,0.38,1922.3,1922.1,6.7554]
[1617280501931,25.0,1922.2,1921.9,0.17011134]
[1617280502130,27.14619572,1922.2,1921.9,0.17011134]
[1617280502429,1.2,1922.1,1921.9,0.17011134]
[1617280502628,35.79319572,1922.0,1921.9,0.17011134]
[1617280502826,3.90491,1921.5,1920.9,0.38]
[1617280503027,3.90491,1921.5,1920.9,0.28]
[1617280503028,2.14619572,1921.4,1920.9,0.28]
[1617280503430,0.063,1921.4,1920.9,0.28]
[1617280503658,0.063,1921.4,1921.0,0.4]
[1617280503860,0.063,1921.4,1921.0,0.82]
[1617280504458,0.063,1921.4,1921.0,0.42]
[1617280504660,7.81042,1921.2,1921.0,0.42]
[1617280505760,3.94010986,1921.1,1920.9,0.1239724]
[1617280505962,13.52850558,1921.1,1920.9,0.1239724]
[1617280506381,11.44530986,1921.1,1920.9,0.1239724]
[1617280506991,7.81166,1921.0,1920.9,0.1239724]
[1617280507684,11.44530986,1921.1,1920.9,0.1239724]
[1617280507881,11.44530986,1921.1,1920.9,0.4039724]
[1617280508081,11.44530986,1921.1,1920.6,5.01]
[1617280508291,11.44530986,1921.1,1920.7,0.28]
[1617280508491,11.44530986,1921.1,1920.6,5.01]
[1617280508688,19.44530986,1921.1,1920.5,0.68]
[1617280509300,20.45700986,1921.1,1920.5,0.68]
[1617280509501,20.45700986,1921.1,1920.5,6.6]
[1617280510102,20.5285003,1921.1,1920.5,6.6]
[1617280510501,20.5285003,1921.1,1920.6,0.50204383]
[1617280510703,19.5168003,1921.1,1920.6,0.50204383]
[1617280510902,19.5168003,1921.1,1920.8,0.41]
[1617280511103,18.5168003,1921.1,1920.9,0.41]
[1617280511302,11.44530986,1921.1,1920.9,0.41]
[1617280512425,19.44530986,1921.1,1920.7,0.28]
[1617280513028,2.07409776,1921.0,1920.6,0.12204383]
[1617280513433,2.07409776,1920.8,1920.6,0.12204383]
[1617280513628,12.04641,1920.9,1920.6,0.12204383]
[1617280514262,12.04641,1920.9,1920.5,0.68]
[1617280514456,12.04641,1920.9,1920.4,38.884903]
[1617280514457,2.07409776,1920.8,1920.4,38.884903]
[1617280514757,7.81282,1920.7,1920.4,38.884903]
[1617280514956,15.8809,1920.7,1920.4,38.884903]
[1617280515461,15.94065019,1920.7,1920.4,38.884903]
[1617280516159,14.94065019,1920.7,1920.5,0.41]
[1617280516357,6.94065019,1920.7,1920.5,0.41]
[1617280516560,6.94065019,1920.7,1920.5,6.29]
[1617280516778,7.78475977,1920.7,1920.6,0.4]
[1617280516977,1.02785977,1920.7,1920.6,0.4]
[1617280517180,7.81256,1920.8,1920.6,0.4]
[1617280517379,15.81256,1920.8,1920.4,38.884903]
[1617280517583,15.81256,1920.8,1920.5,0.4]
[1617280517985,7.81256,1920.8,1920.5,0.4]
[1617280518282,7.81256,1920.8,1920.5,6.32]
[1617280518479,0.14,1920.9,1920.6,0.38]
[1617280518689,2.07313218,1921.0,1920.7,0.38]